bitfinex/quotes_BTCUSD_20250110
["timestamp","ask_amount","ask_price","bid_price","bid_amount"]
[1736546113431,0.53994227,94868.0,94867.0,0.0010852]
[1736546113871,0.54294227,94868.0,94867.0,0.0010852]
[1736546114482,0.53994227,94868.0,94867.0,0.0010852]
[1736546114640,0.54394227,94868.0,94867.0,0.0010852]
[1736546115233,0.63854049,94868.0,94867.0,0.0010852]
[1736546117148,0.273,94867.0,94866.0,4e-07]
[1736546117353,0.81682052,94867.0,94866.0,4e-07]
[1736546117558,0.82640454,94867.0,94866.0,4e-07]
[1736546117950,0.85676897,94867.0,94866.0,4e-07]
[1736546118407,0.95136719,94867.0,94866.0,4e-07]
[1736546118603,0.96036719,94867.0,94866.0,0.0010004]
[1736546119394,0.93000276,94867.0,94866.0,0.0010004]
[1736546120043,0.83000276,94867.0,94866.0,0.0010004]
[1736546120218,0.93400276,94867.0,94866.0,0.0010004]
[1736546120616,0.83400276,94867.0,94866.0,0.0010004]
[1736546121227,0.93400276,94867.0,94866.0,0.0010004]
[1736546122380,0.83400276,94867.0,94866.0,0.0010004]
[1736546122980,0.73940454,94867.0,94866.0,0.0010004]
[1736546126471,0.83940454,94867.0,94866.0,0.0010004]
[1736546127270,0.73940454,94867.0,94866.0,0.0010004]
[1736546127636,0.83400276,94867.0,94866.0,0.0010004]
[1736546128702,0.93400276,94867.0,94866.0,0.0010004]
[1736546129088,0.73940454,94867.0,94866.0,0.0010004]
[1736546130268,0.83940454,94867.0,94866.0,0.0010004]
[1736546131909,0.88161574,94867.0,94866.0,0.0010004]
[1736546135488,0.73940454,94867.0,94866.0,0.0010004]
[1736546136307,0.69868454,94867.0,94866.0,0.0010004]
[1736546137260,0.84074885,94867.0,94866.0,0.0010004]
[1736546137661,0.69868454,94867.0,94866.0,0.0010004]
[1736546138952,0.88829954,94867.0,94866.0,0.0010004]
[1736546140206,0.69868454,94867.0,94866.0,0.0010004]
[1736546144200,1.02798454,94867.0,94866.0,0.0010004]
[1736546151883,1.07298454,94867.0,94866.0,0.0010004]
[1736546153518,1.27298454,94867.0,94866.0,4e-07]
[1736546153724,1.30335016,94867.0,94866.0,4e-07]
[1736546158329,1.29607016,94867.0,94866.0,4e-07]
[1736546158533,1.30335016,94867.0,94866.0,4e-07]
[1736546160951,1.27298454,94867.0,94866.0,4e-07]
[1736546166285,1.17298454,94867.0,94866.0,4e-07]
[1736546167796,1.27298454,94867.0,94866.0,4e-07]
[1736546168699,1.17298454,94867.0,94866.0,4e-07]
[1736546168881,1.27298454,94867.0,94866.0,4e-07]
[1736546190006,1.17298454,94867.0,94866.0,4e-07]
[1736546190206,1.27298454,94867.0,94866.0,4e-07]
[1736546198993,1.17298454,94867.0,94866.0,4e-07]
[1736546199166,1.27298454,94867.0,94866.0,4e-07]
[1736546215419,1.22798454,94867.0,94866.0,4e-07]
[1736546219811,1.22070454,94867.0,94866.0,4e-07]
[1736546220019,0.56270502,94867.0,94866.0,4e-07]
[1736546220275,0.56270502,94867.0,94866.0,0.1290004]
[1736546220496,0.35188402,94867.0,94866.0,0.1290004]
[1736546221128,0.34788402,94867.0,94866.0,0.1290004]
[1736546222164,0.33888402,94867.0,94866.0,0.129]
[1736546222380,0.33888402,94867.0,94866.0,0.13]
[1736546222381,0.34788402,94867.0,94866.0,0.13]
[1736546222604,0.50188402,94867.0,94866.0,0.0807]
[1736546222723,0.50188402,94867.0,94851.0,0.01975516]
[1736546222724,0.210839,94859.0,94858.0,0.0791]
[1736546222943,0.21935574,94859.0,94858.0,0.0791]
[1736546224217,0.22035574,94859.0,94858.0,0.0791]
[1736546225259,0.22335574,94859.0,94858.0,0.0791]
[1736546225773,0.22335574,94859.0,94849.0,8.52e-05]
[1736546225774,0.210857,94851.0,94850.0,0.0779]
[1736546225982,0.218137,94851.0,94850.0,0.0779]
[1736546226154,0.22664665,94851.0,94850.0,0.0779]
[1736546226973,0.22664665,94851.0,94850.0,0.0789]
[1736546228463,0.22664665,94851.0,94850.0,0.0799]
[1736546228646,0.29026447,94851.0,94850.0,0.0799]
[1736546229085,0.23730234,94851.0,94850.0,0.0799]
[1736546229267,0.23730234,94851.0,94850.0,0.002]
[1736546233028,0.56660234,94851.0,94850.0,0.002]
[1736546234925,0.56660234,94851.0,94849.0,8.52e-05]
[1736546235315,0.57060234,94851.0,94849.0,8.52e-05]
[1736546235660,0.56660234,94851.0,94849.0,8.52e-05]
[1736546235786,0.57060234,94851.0,94849.0,8.52e-05]
[1736546236388,0.57460234,94851.0,94849.0,8.52e-05]
[1736546236943,0.58960375,94851.0,94849.0,8.52e-05]
[1736546237156,0.57560234,94851.0,94849.0,8.52e-05]
[1736546237908,0.57460234,94851.0,94849.0,8.52e-05]
[1736546240131,0.57560234,94851.0,94849.0,8.52e-05]
[1736546243011,0.56494665,94851.0,94849.0,8.52e-05]
[1736546244794,0.55694665,94851.0,94849.0,8.52e-05]
[1736546245131,0.55594665,94851.0,94849.0,8.52e-05]
[1736546245518,0.56094665,94851.0,94849.0,8.52e-05]
[1736546246029,0.55594665,94851.0,94849.0,8.52e-05]
[1736546246346,0.55994665,94851.0,94849.0,8.52e-05]
[1736546251186,0.15,94850.0,94849.0,8.52e-05]
[1736546251356,0.26157976,94850.0,94849.0,8.52e-05]
[1736546251562,0.34638358,94850.0,94849.0,8.52e-05]
[1736546252600,0.37738358,94850.0,94849.0,0.0010852]
[1736546253909,0.37538358,94850.0,94849.0,0.0010852]
[1736546254112,0.47968334,94850.0,94849.0,0.0010852]
[1736546254408,0.61786007,94850.0,94849.0,8.52e-05]
[1736546254606,0.64481049,94850.0,94849.0,0.0010852]
[1736546255006,0.83193376,94850.0,94849.0,0.0010852]
[1736546257242,0.97406061,94850.0,94849.0,0.0010852]
[1736546257819,0.83193376,94850.0,94849.0,0.0010852]
[1736546259748,0.97406061,94850.0,94849.0,0.0010852]
[1736546260146,0.83193376,94850.0,94849.0,0.0010852]
[1736546262795,0.92663557,94850.0,94849.0,0.0010852]
[1736546264257,0.83193376,94850.0,94849.0,0.0010852]
[1736546265216,0.81098334,94850.0,94849.0,0.0010852]
[1736546269608,0.90568515,94850.0,94849.0,0.0010852]
[1736546270095,0.81098334,94850.0,94849.0,0.0010852]
[1736546272585,0.90568515,94850.0,94849.0,0.0010852]
[1736546273314,0.81098334,94850.0,94849.0,0.0010852]
[1736546276666,0.81098334,94850.0,94849.0,0.0010852]
[1736546279405,0.15,94846.0,94845.0,6e-07]
[1736546279625,0.83349976,94846.0,94845.0,6e-07]
[1736546279809,0.87225189,94846.0,94845.0,6e-07]
[1736546280675,0.87325189,94846.0,94845.0,6e-07]
[1736546281082,0.98125189,94846.0,94845.0,6e-07]
[1736546281304,0.98125189,94846.0,94817.0,8.53e-05]
[1736546281305,0.173,94824.0,94823.0,4e-07]
[1736546281515,0.4392601,94824.0,94823.0,4e-07]
[1736546281723,0.4476922,94824.0,94823.0,4e-07]
[1736546281946,0.84671186,94824.0,94823.0,4e-07]
[1736546282153,0.95101162,94824.0,94823.0,4e-07]
[1736546282306,0.85101162,94824.0,94823.0,4e-07]
[1736546282508,0.74671186,94824.0,94823.0,4e-07]
[1736546282709,0.75471186,94824.0,94823.0,4e-07]
[1736546282915,0.210983,94794.0,94793.0,0.00018889]
[1736546283092,0.218263,94794.0,94793.0,0.00018889]
[1736546283305,0.21938145,94794.0,94793.0,0.07918889]
[1736546284125,0.00839845,94794.0,94793.0,0.07918889]
[1736546284329,0.00839845,94794.0,94793.0,0.08118889]
[1736546284606,0.210972,94800.0,94793.0,0.08118889]
[1736546284781,0.210972,94800.0,94793.0,0.07918889]
[1736546284982,0.004,94794.0,94793.0,0.07918889]
[1736546285181,0.005,94794.0,94793.0,0.07918889]
[1736546285543,0.001,94794.0,94793.0,0.07918889]
[1736546285662,0.00936462,94794.0,94793.0,0.07918889]
[1736546286017,0.00936462,94794.0,94793.0,1.57918889]
[1736546286218,0.01036462,94794.0,94793.0,1.57918889]
[1736546286453,0.002,94794.0,94793.0,0.07918889]
[1736546286585,0.001,94794.0,94793.0,0.07918889]
[1736546286769,0.00936462,94794.0,94793.0,0.07918889]
[1736546286966,0.001,94794.0,94793.0,0.07918889]
[1736546287167,0.00936462,94794.0,94793.0,0.07918889]
[1736546287457,0.001,94794.0,94793.0,0.07918889]
[1736546287586,0.00836462,94794.0,94793.0,0.07918889]
[1736546287796,0.421944,94800.0,94793.0,0.07918889]
[1736546287991,0.00836462,94794.0,94793.0,0.07918889]
[1736546288499,0.421944,94800.0,94793.0,0.07918889]
[1736546288702,0.00836462,94794.0,94793.0,0.07918889]
[1736546289063,0.423944,94800.0,94793.0,0.07918889]
[1736546289240,0.00836462,94794.0,94793.0,0.07918889]
[1736546289382,0.421944,94800.0,94793.0,0.07918889]
[1736546289627,0.00836613,94794.0,94793.0,0.07918889]
[1736546289839,0.210972,94800.0,94793.0,0.07918889]
[1736546290147,0.211972,94800.0,94793.0,0.07918889]
[1736546290348,0.210974,94798.0,94793.0,0.07918889]
[1736546290923,0.00836456,94797.0,94793.0,0.07918889]
[1736546292130,0.210972,94800.0,94793.0,0.07918889]
[1736546292334,0.00836497,94796.0,94793.0,0.07918889]
[1736546292547,0.001,94797.0,94793.0,0.07918889]
[1736546292752,0.00836497,94795.0,94793.0,0.07918889]
[1736546292985,0.001,94797.0,94793.0,0.07918889]
[1736546293223,0.00836497,94794.0,94793.0,0.07918889]
[1736546293462,0.001,94797.0,94793.0,0.07918889]
[1736546293670,0.00836655,94794.0,94793.0,0.07918889]
[1736546293872,0.210972,94800.0,94793.0,0.07918889]
[1736546294074,0.00836655,94794.0,94793.0,0.07918889]
[1736546294277,0.213972,94800.0,94793.0,0.07918889]
[1736546294460,0.210974,94798.0,94793.0,0.07918889]
[1736546294673,0.00836655,94794.0,94793.0,0.07918889]
[1736546295053,0.210974,94798.0,94793.0,0.07918889]
[1736546295272,0.00836497,94797.0,94793.0,0.07918889]
[1736546295679,0.210972,94800.0,94793.0,0.07918889]
[1736546295877,0.43032397,94796.0,94793.0,0.00018889]
[1736546296076,0.00836497,94795.0,94793.0,0.00018889]
[1736546296282,0.210983,94794.0,94793.0,0.00018889]
[1736546296629,0.21935152,94794.0,94793.0,0.00018889]
[1736546298253,0.22035152,94794.0,94793.0,0.00018889]
[1736546299077,0.22435152,94794.0,94793.0,0.00018889]
[1736546304428,0.01336852,94794.0,94793.0,0.00018889]
[1736546304850,0.08876852,94794.0,94793.0,0.00018889]
[1736546305053,0.01336852,94794.0,94793.0,0.00018889]
[1736546305250,0.00936852,94794.0,94793.0,0.00018889]
[1736546305624,0.00836852,94794.0,94793.0,0.00018889]
[1736546306031,0.001,94794.0,94793.0,0.00018889]
[1736546306310,0.01036806,94794.0,94793.0,0.00018889]
[1736546306556,0.002,94794.0,94793.0,0.00018889]
[1736546306681,0.01036806,94794.0,94793.0,0.00018889]
[1736546306896,0.002,94794.0,94793.0,0.00018889]
[1736546307278,0.001,94794.0,94793.0,0.00018889]
[1736546307815,0.009351,94794.0,94793.0,0.00018889]
[1736546307976,0.001,94794.0,94793.0,0.00018889]
[1736546308174,0.00935135,94794.0,94793.0,0.00018889]
[1736546311152,0.70358276,94794.0,94793.0,0.00018889]
[1736546312166,0.72556233,94794.0,94793.0,0.00018889]
[1736546312363,0.88356233,94794.0,94793.0,0.00018889]
[1736546312797,0.87556233,94794.0,94793.0,0.00018889]
[1736546313543,0.87356233,94794.0,94793.0,0.00018889]
[1736546313747,0.87756233,94794.0,94793.0,0.00018889]
[1736546314113,0.88656233,94794.0,94793.0,0.00018889]
[1736546314297,0.88256233,94794.0,94793.0,0.00018889]
[1736546314746,0.88656233,94794.0,94793.0,0.00018889]
[1736546322682,0.76663111,94794.0,94793.0,0.00018889]
[1736546322909,0.74363111,94794.0,94793.0,0.00018889]
[1736546325148,0.63205135,94794.0,94793.0,0.00018889]
[1736546325329,0.63933135,94794.0,94793.0,0.00018889]
[1736546327535,0.73388784,94794.0,94793.0,0.00018889]
[1736546327713,0.8381876,94794.0,94793.0,0.00018889]
[1736546328206,0.74363111,94794.0,94793.0,0.00018889]
[1736546329234,0.83819881,94794.0,94793.0,0.00018889]
[1736546330788,0.44521905,94794.0,94793.0,0.00018889]
[1736546331003,0.45249905,94794.0,94793.0,0.00018889]
[1736546331427,0.85379881,94794.0,94793.0,0.00018889]
[1736546331650,0.211056,94762.0,94750.0,0.293281]
[1736546331878,0.00728,94765.0,94750.0,0.0822]
[1736546332051,0.211061,94760.0,94750.0,0.0822]
[1736546332257,0.422122,94760.0,94750.0,0.0822]
[1736546332458,0.00828707,94759.0,94750.0,0.0822]
[1736546333639,0.00828707,94759.0,94750.0,0.293281]
[1736546333860,0.00828707,94759.0,94755.0,0.0031232]
[1736546334474,0.211053,94763.0,94755.0,0.0051232]
[1736546334692,0.00828072,94758.0,94755.0,0.0051232]
[1736546335011,0.211053,94763.0,94755.0,0.0031232]
[1736546335217,0.00828072,94757.0,94755.0,0.0041232]
[1736546335433,0.211053,94763.0,94755.0,0.0051232]
[1736546335880,0.212053,94763.0,94755.0,0.0051232]
[1736546336141,0.211053,94763.0,94755.0,0.0051232]
[1736546336383,0.211053,94763.0,94755.0,0.0031232]
[1736546336848,0.00828072,94762.0,94755.0,0.0031232]
[1736546337263,0.211057,94761.0,94755.0,0.0031232]
[1736546337516,0.211057,94761.0,94755.0,0.0041232]
[1736546337967,0.00828072,94760.0,94755.0,0.0041232]
[1736546338432,0.00828072,94760.0,94756.0,0.31536776]
[1736546338724,0.00728,94765.0,94756.0,0.31536776]
[1736546338959,0.00728,94765.0,94756.0,0.31840556]
[1736546339153,0.00828116,94764.0,94757.0,1.5]
[1736546339286,0.00828116,94764.0,94758.0,0.10429976]
[1736546339713,0.00828116,94763.0,94758.0,0.10429976]
[1736546339921,0.00728,94765.0,94758.0,0.10733756]
[1736546340135,0.00828116,94762.0,94758.0,0.10733756]
[1736546340358,0.422086,94768.0,94758.0,0.10733756]
[1736546340582,0.00828216,94761.0,94758.0,0.10733756]
[1736546340998,0.211052,94764.0,94758.0,0.10733756]
[1736546341514,0.211052,94764.0,94758.0,0.10833756]
[1736546341715,0.00828196,94763.0,94758.0,0.10733756]
[1736546341932,0.211052,94764.0,94758.0,0.10733756]
[1736546342168,0.211052,94764.0,94758.0,0.10833756]
[1736546342395,0.00828196,94763.0,94758.0,0.10733756]
[1736546342648,0.211052,94764.0,94758.0,0.10733756]
[1736546343133,0.00828196,94763.0,94758.0,0.10733756]
[1736546343399,0.00828196,94763.0,94758.0,0.0030378]
[1736546343597,0.422111,94762.0,94758.0,0.0030378]
[1736546343737,0.43039296,94762.0,94758.0,0.0040378]
[1736546343958,0.43039296,94762.0,94758.0,0.0030378]
[1736546344164,0.43039296,94762.0,94758.0,0.0050378]
[1736546344526,0.43039296,94762.0,94758.0,0.0040378]
[1736546344642,0.43039296,94762.0,94758.0,0.0030378]
[1736546344883,0.43139296,94762.0,94758.0,0.0030378]
[1736546345333,0.540359,94760.0,94758.0,0.0030378]
[1736546345555,0.0832592,94759.0,94758.0,0.0030378]
[1736546346198,0.21055896,94759.0,94758.0,0.0030378]
[1736546347760,0.21455896,94759.0,94758.0,0.0030378]
[1736546347985,0.36455896,94759.0,94758.0,0.0030378]
[1736546348222,0.46885872,94759.0,94758.0,0.0030378]
[1736546348445,0.46985872,94759.0,94758.0,0.0030378]
[1736546349094,0.49127603,94759.0,94758.0,0.0030378]
[1736546349303,0.50173499,94759.0,94758.0,0.0030378]
[1736546350761,0.83103499,94759.0,94758.0,0.0030378]
[1736546352768,0.87973499,94759.0,94758.0,0.0030378]
[1736546353182,0.77543523,94759.0,94758.0,0.0030378]
[1736546353773,0.77443523,94759.0,94758.0,0.0030378]
[1736546354092,0.77343523,94759.0,94758.0,0.0030378]
[1736546354242,0.78143523,94759.0,94758.0,0.0030378]
[1736546354440,0.77343523,94759.0,94758.0,0.0030378]
[1736546354648,0.77043523,94759.0,94758.0,0.0030378]
[1736546354832,0.77943523,94759.0,94758.0,0.0030378]
[1736546355461,0.86162203,94759.0,94758.0,0.0030378]
[1736546358957,0.77943523,94759.0,94758.0,0.0030378]
[1736546364047,0.65213547,94759.0,94758.0,0.0030378]
[1736546364252,0.65941547,94759.0,94758.0,0.0030378]
[1736546365255,0.61071547,94759.0,94758.0,0.0030378]
[1736546365847,0.60343547,94759.0,94758.0,0.0030378]
[1736546366205,0.61071547,94759.0,94758.0,0.0030378]
[1736546370084,0.53571547,94759.0,94758.0,0.0030378]
[1736546371643,0.51429816,94759.0,94758.0,0.0030378]
[1736546375281,0.36429816,94759.0,94758.0,0.0030378]
[1736546379002,0.44419816,94759.0,94758.0,0.0030378]
[1736546381914,0.57149792,94759.0,94758.0,0.0030378]
[1736546383603,0.82579768,94759.0,94758.0,0.0030378]
[1736546384042,0.72149792,94759.0,94758.0,0.0030378]
[1736546385023,0.91083736,94759.0,94758.0,0.0030378]
[1736546385905,0.72149792,94759.0,94758.0,0.0030378]
[1736546386246,0.76799792,94759.0,94758.0,0.0030378]
[1736546389602,0.77274591,94759.0,94758.0,0.0030378]
[1736546389737,0.87704567,94759.0,94758.0,0.0030378]
[1736546396408,0.77274591,94759.0,94758.0,0.0030378]
[1736546396825,0.76948977,94759.0,94758.0,0.0030378]
[1736546397043,1.00619026,94759.0,94758.0,0.0030378]
[1736546397703,0.76948977,94759.0,94758.0,0.0030378]
[1736546398550,0.9588546,94759.0,94758.0,0.0030378]
[1736546398749,1.06315436,94759.0,94758.0,0.0030378]
[1736546399185,0.87378953,94759.0,94758.0,0.0030378]
[1736546400677,1.06310098,94759.0,94758.0,0.0030378]
[1736546401431,0.77772146,94759.0,94758.0,0.0030378]
[1736546401619,0.36579001,94759.0,94758.0,0.0030378]
[1736546402046,0.50049807,94759.0,94758.0,0.0030378]
[1736546402267,0.49003911,94759.0,94758.0,0.0030378]
[1736546402566,0.49731911,94759.0,94758.0,0.0030378]
[1736546402699,0.35533105,94759.0,94758.0,0.0030378]
[1736546402897,0.35333105,94759.0,94758.0,0.0030378]
[1736546403128,0.34833105,94759.0,94758.0,0.0030378]
[1736546403535,0.34105105,94759.0,94758.0,0.0030378]
[1736546403737,0.35233105,94759.0,94758.0,0.0030378]
[1736546405096,0.34633105,94759.0,94758.0,0.0030378]
[1736546405534,0.34733105,94759.0,94758.0,0.0030378]
[1736546405976,0.34633105,94759.0,94758.0,0.0030378]
[1736546406188,0.33905105,94759.0,94758.0,0.0030378]
[1736546406398,0.34633105,94759.0,94758.0,0.0040378]
[1736546407617,0.33905105,94759.0,94758.0,0.0040378]
[1736546407861,0.34633105,94759.0,94758.0,0.0040378]
[1736546412129,0.35333105,94759.0,94758.0,0.0030378]
[1736546412538,0.34633105,94759.0,94758.0,0.0030378]
[1736546412763,0.34833105,94759.0,94758.0,0.0030378]
[1736546414930,0.34633105,94759.0,94758.0,0.0030378]
[1736546415133,0.34833105,94759.0,94758.0,0.0030378]
[1736546415337,0.34105105,94759.0,94758.0,0.0030378]
[1736546415538,0.34833105,94759.0,94758.0,0.0030378]
[1736546418043,0.34633105,94759.0,94758.0,0.0030378]
[1736546418251,0.34833105,94759.0,94758.0,0.0030378]
[1736546430723,0.85423057,94759.0,94758.0,0.0030378]
[1736546431965,0.85223057,94759.0,94758.0,0.0030378]
[1736546432173,0.95289281,94759.0,94758.0,0.0030378]
[1736546432736,1.00221863,94759.0,94758.0,0.0030378]
[1736546432942,0.99621863,94759.0,94758.0,0.0030378]
[1736546433343,1.00521863,94759.0,94758.0,0.0030378]
[1736546433580,0.99421863,94759.0,94758.0,0.0030378]
[1736546433747,0.85223057,94759.0,94758.0,0.0030378]
[1736546433946,0.86123057,94759.0,94758.0,0.0030378]
[1736546435159,0.85223057,94759.0,94758.0,0.0030378]
[1736546435406,0.85623057,94759.0,94758.0,0.0030378]
[1736546435566,0.86523057,94759.0,94758.0,0.0030378]
[1736546435788,0.85623057,94759.0,94758.0,0.0030378]
[1736546435992,0.86523057,94759.0,94758.0,0.0030378]
[1736546436677,0.86123057,94759.0,94758.0,0.0030378]
[1736546437178,0.86523057,94759.0,94758.0,0.0030378]
[1736546446889,1.05432467,94759.0,94758.0,0.0030378]
[1736546449040,0.95002491,94759.0,94758.0,0.0030378]
[1736546449950,0.76093081,94759.0,94758.0,0.0030378]
[1736546453641,0.58463105,94759.0,94758.0,0.0030378]
[1736546453842,0.68165081,94759.0,94758.0,0.0030378]
[1736546454042,0.71189081,94759.0,94758.0,0.0030378]
[1736546454777,0.80635556,94759.0,94758.0,0.0030378]
[1736546457369,0.6037558,94759.0,94758.0,0.0030378]
[1736546457830,0.4465158,94759.0,94758.0,0.0030378]
[1736546458036,0.4537558,94759.0,94758.0,0.0030378]
[1736546458235,0.35929105,94759.0,94758.0,0.0030378]
[1736546458406,0.33905105,94759.0,94758.0,0.0030378]
[1736546458610,0.35529105,94759.0,94758.0,0.0030378]
[1736546458809,0.35629105,94759.0,94758.0,0.0030378]
[1736546459068,0.34729105,94759.0,94758.0,0.0030378]
[1736546459255,0.35229105,94759.0,94758.0,0.0030378]
[1736546460110,0.34729105,94759.0,94758.0,0.0030378]
[1736546460505,0.35229105,94759.0,94758.0,0.0030378]
[1736546461518,0.35129105,94759.0,94758.0,0.0030378]
[1736546461720,0.35229105,94759.0,94758.0,0.0030378]
[1736546462165,0.34729105,94759.0,94758.0,0.0030378]
[1736546462501,0.35229105,94759.0,94758.0,0.0030378]
[1736546462704,0.34629105,94759.0,94758.0,0.0030378]
[1736546463029,0.34729105,94759.0,94758.0,0.0030378]
[1736546468445,0.34005105,94759.0,94758.0,0.0030378]
[1736546468689,0.01075105,94759.0,94758.0,0.18713756]
[1736546468904,0.01075105,94759.0,94758.0,0.18819269]
[1736546469119,0.001,94759.0,94758.0,1.68819269]
[1736546469329,0.001,94759.0,94758.0,1.68713756]
[1736546469540,0.0009805,94774.0,94759.0,0.0798]
[1736546469773,0.0009805,94774.0,94769.0,0.211037]
[1736546469987,0.00901154,94773.0,94770.0,0.0798]
[1736546470200,0.00724,94779.0,94770.0,0.0798]
[1736546470555,0.00901154,94778.0,94770.0,0.0798]
[1736546471136,0.00901154,94778.0,94770.0,0.0828378]
[1736546471334,0.00901154,94778.0,94771.0,0.211035]
[1736546471533,0.00901154,94778.0,94770.0,0.0828378]
[1736546472434,0.00901154,94778.0,94775.0,0.422049]
[1736546472577,0.00901154,94778.0,94777.0,0.211021]
[1736546472789,0.0009814,94789.0,94778.0,0.0798]
[1736546472989,0.0009814,94789.0,94785.0,0.211003]
[1736546473197,0.3293,94795.0,94786.0,0.10429976]
[1736546473570,0.00906858,94794.0,94786.0,0.10429976]
[1736546474145,0.00906858,94794.0,94786.0,0.10733756]
[1736546476141,0.01106858,94794.0,94786.0,0.10733756]
[1736546477536,0.002,94794.0,94787.0,0.210999]
[1736546477833,0.002,94794.0,94786.0,0.10733756]
[1736546479415,0.00724,94795.0,94786.0,0.10733756]
[1736546479627,0.210983,94794.0,94786.0,0.10733756]
[1736546479826,0.00910545,94793.0,94786.0,0.10733756]
[1736546480232,0.00910545,94793.0,94786.0,0.31833756]
[1736546480505,0.002,94794.0,94786.0,0.31833756]
[1736546480706,0.218222,94795.0,94786.0,0.31833756]
[1736546480878,0.00914408,94793.0,94786.0,0.31833756]
[1736546481102,0.002,94793.0,94786.0,0.0030378]
[1736546481339,0.00914658,94792.0,94786.0,0.0030378]
[1736546481662,0.218222,94795.0,94786.0,0.0030378]
[1736546481876,0.210986,94793.0,94786.0,0.0030378]
[1736546482506,0.00915156,94792.0,94786.0,0.0030378]
[1736546484596,0.00915156,94792.0,94786.0,0.0040378]
[1736546485000,0.299422,94795.0,94786.0,0.0040378]
[1736546485207,0.00918139,94791.0,94786.0,0.0040378]
[1736546485407,0.299422,94795.0,94786.0,0.0040378]
[1736546485582,0.00918139,94790.0,94786.0,0.0040378]
[1736546485782,0.299422,94795.0,94786.0,0.0040378]
[1736546486110,0.299422,94795.0,94786.0,0.0030378]
[1736546486340,0.00918139,94794.0,94786.0,0.0030378]
[1736546486556,0.00918139,94794.0,94787.0,0.210999]
[1736546487286,0.00918139,94794.0,94787.0,0.2140368]
[1736546489380,0.00918139,94794.0,94787.0,0.2150368]
[1736546491535,0.00918139,94794.0,94791.0,0.210989]
[1736546491744,0.00918139,94794.0,94787.0,0.2150368]
[1736546491917,0.00724,94795.0,94787.0,0.2150368]
[1736546492125,0.0091698,94793.0,94787.0,0.2150368]
[1736546492328,0.00724,94795.0,94787.0,0.2150368]
[1736546492539,0.00724,94795.0,94787.0,0.2140368]
[1736546492732,0.00916396,94794.0,94787.0,0.2140368]
[1736546493463,0.0794,94793.0,94787.0,0.2140368]
[1736546493791,0.00917064,94792.0,94787.0,0.2140368]
[1736546494608,0.00917064,94792.0,94791.0,0.001]
[1736546495134,0.00917064,94792.0,94787.0,0.2140368]
[1736546495316,0.00917064,94792.0,94787.0,0.2150368]
[1736546495774,0.00917064,94792.0,94787.0,0.2140368]
[1736546496189,0.00917064,94792.0,94791.0,0.001]
[1736546496371,0.00917064,94792.0,94791.0,0.0040378]
[1736546497568,0.00917064,94792.0,94791.0,0.0030378]
[1736546500405,0.00724,94795.0,94791.0,0.0030378]
[1736546500825,0.00953112,94794.0,94791.0,0.0030378]
[1736546501551,0.00953112,94794.0,94791.0,0.0040378]
[1736546502097,0.00953112,94794.0,94791.0,0.0030378]
[1736546502641,0.00953112,94794.0,94791.0,0.0040378]
[1736546513752,0.0486,94792.0,94791.0,0.0040378]
[1736546514168,0.1274,94792.0,94791.0,0.0040378]
[1736546514386,0.13689348,94792.0,94791.0,0.0040378]
[1736546515241,0.13689348,94792.0,94791.0,0.0030378]
[1736546516182,0.13789348,94792.0,94791.0,0.0030378]
[1736546516567,0.14189348,94792.0,94791.0,0.0030378]
[1736546518441,0.47119348,94792.0,94791.0,0.0030378]
[1736546519756,0.48193573,94792.0,94791.0,0.0030378]
[1736546534309,0.44057573,94792.0,94791.0,0.0030378]
[1736546534511,0.35103348,94792.0,94791.0,0.0030378]
[1736546535634,0.56202148,94792.0,94791.0,0.0030378]
[1736546536043,0.56102148,94792.0,94791.0,0.0030378]
[1736546536403,0.23272148,94792.0,94791.0,0.0030378]
[1736546536969,0.22872148,94792.0,94791.0,0.0030378]
[1736546537128,0.23172148,94792.0,94791.0,0.0030378]
[1736546537734,0.23072148,94792.0,94791.0,0.0030378]
[1736546538052,0.23172148,94792.0,94791.0,0.0030378]
[1736546540979,0.23172148,94792.0,94791.0,0.0033378]
[1736546546005,0.01349348,94792.0,94791.0,0.0033378]
[1736546546605,0.004,94792.0,94791.0,0.0033378]
[1736546546907,0.01348828,94792.0,94791.0,0.0033378]
[1736546547103,0.21098,94796.0,94791.0,0.0033378]
[1736546547283,0.00948828,94792.0,94791.0,0.0033378]
[1736546547488,0.002,94792.0,94791.0,0.0033378]
[1736546547652,0.00948828,94792.0,94791.0,0.0033378]
[1736546547855,0.21098,94796.0,94791.0,0.0033378]
[1736546548063,0.00948828,94792.0,94791.0,0.0033378]
[1736546548624,0.21098,94796.0,94791.0,0.0033378]
[1736546548851,0.00948828,94792.0,94791.0,0.0033378]
[1736546549076,0.21098,94796.0,94791.0,0.0033378]
[1736546549259,0.00948828,94792.0,94791.0,0.0033378]
[1736546549555,0.00948828,94792.0,94791.0,0.0043378]
[1736546549757,0.21198,94796.0,94791.0,0.0043378]
[1736546549966,0.00948565,94795.0,94791.0,0.0033378]
[1736546550172,0.210983,94794.0,94791.0,0.0033378]
[1736546550553,0.00948565,94793.0,94791.0,0.0033378]
[1736546552784,0.00948565,94793.0,94791.0,0.0043378]
[1736546554607,0.21098,94796.0,94791.0,0.0043378]
[1736546554811,0.0095184,94792.0,94791.0,0.0043378]
[1736546555027,0.21098,94796.0,94791.0,0.0043378]
[1736546555540,0.210983,94794.0,94791.0,0.0033378]
[1736546555959,0.00947014,94793.0,94791.0,0.0033378]
[1736546559444,0.00947014,94793.0,94791.0,0.0043378]
[1736546562521,0.210988,94792.0,94791.0,0.0043378]
[1736546562694,0.292388,94792.0,94791.0,0.0043378]
[1736546562933,0.30186779,94792.0,94791.0,0.0043378]
[1736546564745,0.30186779,94792.0,94791.0,0.0033378]
[1736546566106,0.30186779,94792.0,94791.0,0.0043378]
[1736546569257,0.30186779,94792.0,94791.0,0.0033378]
[1736546569856,0.30386779,94792.0,94791.0,0.0033378]
[1736546570576,0.30186779,94792.0,94791.0,0.0033378]
[1736546570788,0.30386779,94792.0,94791.0,0.0033378]
[1736546575177,0.31110779,94792.0,94791.0,0.0033378]
[1736546580663,0.30386779,94792.0,94791.0,0.0033378]
[1736546580901,0.31110779,94792.0,94791.0,0.0033378]
[1736546587981,0.30386779,94792.0,94791.0,0.0033378]
[1736546608699,0.95816755,94792.0,94791.0,0.0033378]
[1736546609727,0.95616755,94792.0,94791.0,0.0033378]
[1736546610151,0.96216755,94792.0,94791.0,0.0033378]
[1736546610382,1.19374398,94792.0,94791.0,0.0033378]
[1736546610737,1.21824467,94792.0,94791.0,0.0033378]
[1736546610933,1.32354443,94792.0,94791.0,0.0033378]
[1736546611109,1.31954443,94792.0,94791.0,0.0033378]
[1736546611901,1.31854443,94792.0,94791.0,0.0033378]
[1736546612527,1.090968,94792.0,94791.0,0.0033378]
[1736546612729,1.081968,94792.0,94791.0,0.0033378]
[1736546613167,1.090968,94792.0,94791.0,0.0033378]
[1736546613365,0.98490824,94792.0,94791.0,0.0033378]